bitfinex/quotes_ETHUSD_20241122
["timestamp","ask_amount","ask_price","bid_price","bid_amount"]
[1732293635349,0.31297304,3298.1,3297.3,0.302]
[1732293635638,9.45681444,3298.0,3297.3,0.302]
[1732293635842,0.7704,3297.8,3297.2,1.88887256]
[1732293636026,9.10258201,3297.7,3297.2,1.88887256]
[1732293636228,0.7701,3297.5,3297.2,1.88887256]
[1732293636545,1.3201,3297.4,3295.7,9.03518776]
[1732293636846,9.26255122,3297.3,3295.7,6.24744601]
[1732293637139,0.80298218,3297.2,3295.7,6.24744601]
[1732293637346,0.03288218,3297.1,3296.0,3.38515188]
[1732293637502,0.7701,3297.2,3296.1,0.33851519]
[1732293637702,0.03288218,3297.1,3295.6,0.03033305]
[1732293637905,0.03288218,3297.1,3295.6,3.38515188]
[1732293638943,0.7701,3297.2,3295.6,3.38515188]
[1732293638944,0.80298218,3297.2,3295.7,0.03033655]
[1732293639109,0.80298218,3297.2,3296.0,3.38515188]
[1732293639110,1.7421079,3297.2,3296.0,3.38515188]
[1732293639303,1.77499008,3297.2,3296.0,3.38515188]
[1732293639842,8.79,3297.1,3296.0,3.38515188]
[1732293640042,0.03288218,3297.0,3295.6,3.41548563]
[1732293640245,1.05649901,3297.0,3296.0,3.38515188]
[1732293640548,8.79,3297.1,3296.4,3.38515188]
[1732293641231,0.7701,3297.2,3296.4,3.38515188]
[1732293641232,9.5601,3297.2,3296.4,3.38515188]
[1732293641840,0.03288218,3297.1,3296.4,3.38515188]
[1732293642251,1.02375523,3297.1,3296.0,3.38515188]
[1732293642553,8.79,3297.0,3296.0,3.38515188]
[1732293643544,0.7862,3296.8,3295.2,3.0]
[1732293643853,0.7862,3296.8,3295.1,3.38515188]
[1732293643854,8.82288218,3296.7,3295.3,0.63851519]
[1732293644004,8.79,3296.7,3295.5,3.38515188]
[1732293644203,0.03288218,3296.6,3295.6,0.33851519]
[1732293644410,0.03288218,3296.6,3295.5,3.38515188]
[1732293644411,9.5762,3296.5,3295.5,3.38515188]
[1732293644652,8.82288218,3296.4,3295.1,3.38515188]
[1732293644833,0.96090822,3296.3,3295.2,0.69078791]
[1732293645008,8.79,3296.2,3295.2,0.69078791]
[1732293645457,8.79,3296.2,3295.1,3.38515188]
[1732293645458,0.7915,3296.0,3295.1,3.38515188]
[1732293645611,0.7915,3296.0,3294.7,3.38515188]
[1732293645612,8.82288218,3295.9,3294.7,3.38515188]
[1732293645813,8.79,3295.8,3294.7,3.38515188]
[1732293646045,0.879,3295.7,3294.7,3.38515188]
[1732293648312,0.03288218,3295.6,3294.7,3.38515188]
[1732293648516,0.7683,3295.5,3294.3,3.38515188]
[1732293648746,0.03288218,3295.4,3294.3,3.38515188]
[1732293649836,0.7683,3295.5,3295.1,3.38515188]
[1732293650065,0.7683,3295.5,3295.1,4.07593979]
[1732293650267,0.7683,3295.5,3295.1,3.38515188]
[1732293650837,0.7683,3295.5,3294.7,3.38515188]
[1732293651144,0.03288218,3295.4,3294.3,3.38515188]
[1732293651657,0.7683,3295.5,3294.3,3.38515188]
[1732293651658,0.7683,3295.5,3294.4,0.03034932]
[1732293651857,8.79,3295.3,3294.3,3.38515188]
[1732293652079,8.79,3295.4,3294.7,3.38515188]
[1732293653278,7.52807413,3295.4,3294.7,3.38515188]
[1732293653440,0.03288218,3295.3,3294.7,3.38515188]
[1732293653641,7.52807413,3295.4,3295.1,3.38515188]
[1732293653913,0.7625,3295.9,3295.1,3.38515188]
[1732293653914,0.7625,3295.9,3295.1,3.41549735]
[1732293654178,0.7625,3295.9,3295.6,3.38515188]
[1732293654391,0.7625,3295.9,3294.8,3.38515188]
[1732293654546,0.7625,3295.9,3295.2,3.38515188]
[1732293654872,0.7625,3295.9,3294.8,3.38515188]
[1732293655094,0.7625,3295.9,3294.9,0.03034235]
[1732293655377,0.7625,3295.9,3294.8,3.38515188]
[1732293655550,0.03288218,3295.8,3294.8,3.38515188]
[1732293655752,0.03288218,3295.8,3295.1,0.302]
[1732293656274,5.28477829,3295.7,3295.0,3.52272727]
[1732293656449,0.03288218,3295.6,3295.0,3.52272727]
[1732293660406,5.28477829,3295.7,3295.0,3.52272727]
[1732293660613,0.03288218,3295.6,3295.0,3.52272727]
[1732293660911,0.7899,3295.4,3295.0,3.52272727]
[1732293661111,0.7899,3295.2,3295.0,3.52272727]
[1732293661362,0.03288218,3295.1,3295.0,3.52272727]
[1732293661676,9.06027829,3295.1,3295.0,3.52272727]
[1732293661910,9.96630612,3295.1,3295.0,3.52272727]
[1732293662073,10.51630612,3295.1,3295.0,3.52272727]
[1732293662885,6.96630612,3295.1,3295.0,3.52272727]
[1732293663212,0.7908,3295.5,3295.0,3.52272727]
[1732293663717,0.7908,3295.5,3295.1,0.302]
[1732293663871,5.27037829,3295.6,3295.1,0.302]
[1732293664078,5.27037829,3295.6,3295.2,0.68750751]
[1732293665147,0.03288218,3295.5,3295.2,0.302]
[1732293665291,5.27037829,3295.6,3295.0,3.52272727]
[1732293665814,5.27037829,3295.6,3295.1,0.302]
[1732293666020,5.27037829,3295.6,3295.1,1.106]
[1732293666219,5.27037829,3295.6,3295.2,0.46287273]
[1732293666424,5.27037829,3295.6,3295.2,0.76487273]
[1732293666784,0.8006,3295.9,3295.2,0.76487273]
[1732293666785,5.27037829,3295.8,3295.2,0.76487273]
[1732293666983,5.30326047,3295.8,3295.2,0.76487273]
[1732293667297,5.27037829,3295.8,3295.3,0.15688727]
[1732293667506,5.27037829,3295.8,3295.2,0.46287273]
[1732293668214,5.27037829,3295.8,3295.3,0.302]
[1732293669180,5.27037829,3295.8,3295.2,0.49321911]
[1732293669181,5.27037829,3296.5,3295.6,0.302]
[1732293669463,5.27037829,3296.4,3295.8,3.68715188]
[1732293669816,5.27037829,3296.4,3295.8,0.302]
[1732293670044,0.03288218,3296.3,3295.8,0.302]
[1732293670267,0.56320823,3296.3,3295.8,0.302]
[1732293670449,6.02187829,3296.2,3295.2,0.76487273]
[1732293670655,0.03288218,3296.1,3295.2,0.76487273]
[1732293670862,0.03288218,3296.1,3295.2,0.302]
[1732293671020,6.02187829,3296.2,3295.2,0.302]
[1732293671021,0.28024748,3296.0,3295.2,0.302]
[1732293671222,0.28024748,3296.1,3295.2,0.302]
[1732293671557,6.02187829,3296.2,3295.2,0.68447273]
[1732293672478,0.28052408,3296.1,3295.2,0.68447273]
[1732293672621,6.02187829,3296.2,3295.2,0.68447273]
[1732293672823,0.28052603,3296.1,3295.2,0.68447273]
[1732293673017,0.28052603,3296.1,3295.3,0.03034285]
[1732293673324,0.28052603,3296.1,3295.2,0.68447273]
[1732293673520,0.03288218,3296.0,3295.2,0.68447273]
[1732293673767,0.03288218,3296.0,3295.1,0.302]
[1732293674268,0.28055273,3295.9,3295.1,0.302]
[1732293674432,0.28055273,3295.9,3295.2,0.03034519]
[1732293674763,6.02187829,3296.2,3295.1,0.302]
[1732293674944,0.28057256,3296.1,3295.2,1.02298792]
[1732293675147,0.31345474,3296.1,3295.2,1.02298792]
[1732293675354,0.28057256,3296.0,3295.2,1.02298792]
[1732293675648,6.02187829,3296.2,3295.2,1.02298792]
[1732293675965,5.55099484,3296.1,3295.2,1.02298792]
[1732293676146,0.28061655,3296.0,3295.2,1.02298792]
[1732293676460,0.03288218,3295.9,3295.1,0.302]
[1732293676691,5.27037829,3295.8,3295.1,0.302]
[1732293676877,5.30326047,3295.7,3295.1,0.302]
[1732293677063,5.83358652,3295.7,3295.1,0.302]
[1732293677664,0.7731,3295.6,3295.1,0.302]
[1732293677897,0.80598218,3295.6,3295.1,0.302]
[1732293678067,0.28045508,3295.5,3295.1,0.302]
[1732293678263,0.80598218,3295.6,3295.1,0.302]
[1732293678595,0.7731,3295.6,3295.1,0.302]
[1732293678893,5.27037829,3295.7,3295.1,0.68447273]
[1732293679257,0.03288218,3295.6,3295.1,0.29774355]
[1732293679757,0.03288218,3295.6,3295.0,3.52272727]
[1732293679758,0.7929,3295.4,3295.0,3.52272727]
[1732293679973,0.03288218,3295.3,3295.0,3.52272727]
[1732293680158,5.27037829,3295.2,3295.0,3.52272727]
[1732293680389,0.84352672,3295.1,3295.0,3.52272727]
[1732293680576,6.08101876,3295.1,3295.0,3.52272727]
[1732293680892,5.27037829,3295.1,3295.0,3.52272727]
[1732293681100,5.55071116,3295.1,3295.0,3.52272727]
[1732293681473,5.27037829,3295.1,3295.0,3.52272727]
[1732293684495,6.07507829,3295.1,3295.0,3.52272727]
[1732293684667,6.96295321,3295.1,3295.0,3.52272727]
[1732293687305,6.68258612,3295.1,3295.0,3.52272727]
[1732293687481,6.96275054,3295.1,3295.0,3.52272727]
[1732293690926,3.44002327,3295.1,3293.9,0.302]
[1732293691135,2.06069762,3295.0,3293.9,0.302]
[1732293691284,0.7645,3294.8,3293.4,1.0794]
[1732293691489,1.3687,3294.6,3293.1,0.7958]
[1732293691712,2.06069762,3294.5,3293.1,1.13431519]
[1732293691911,0.28016442,3294.4,3293.1,0.7958]
[1732293692165,0.8187,3294.2,3292.6,0.7958]
[1732293692317,2.61069762,3294.1,3292.7,0.302]
[1732293692651,0.28016442,3294.0,3292.8,3.41552047]
[1732293692829,0.28016442,3294.0,3292.9,0.67375205]
[1732293693020,0.03288218,3293.9,3293.1,0.302]
[1732293693235,1.74765102,3293.8,3293.1,0.302]
[1732293694038,1.74765102,3293.8,3293.3,0.302]
[1732293694263,1.74765102,3294.1,3293.4,1.12506052]
[1732293694613,1.74765102,3294.4,3294.0,3.38515188]
[1732293694937,1.74765102,3294.3,3294.1,0.33851519]
[1732293695143,1.74765102,3294.3,3294.0,3.68715188]
[1732293695728,1.74765102,3294.3,3294.0,0.302]
[1732293695916,1.74765102,3294.3,3293.9,0.302]
[1732293696123,0.03288218,3294.2,3293.9,0.302]
[1732293696558,1.74765102,3294.3,3293.9,0.302]
[1732293697958,1.74765102,3294.3,3293.9,0.33235609]
[1732293698114,1.74765102,3294.3,3293.9,0.302]
[1732293699916,1.7805332,3294.2,3293.9,0.302]
[1732293700114,1.95858652,3294.2,3293.4,1.0545]
[1732293700317,1.7805332,3294.2,3293.4,1.0545]
[1732293700724,1.74765102,3294.2,3293.4,1.0545]
[1732293701140,1.74765102,3294.2,3293.7,0.302]
[1732293701335,1.74765102,3294.2,3293.8,0.67071519]
[1732293702360,0.03288218,3294.1,3293.7,0.302]
[1732293702719,1.74765102,3294.2,3293.7,0.302]
[1732293703021,1.74765102,3294.1,3293.7,0.302]
[1732293703333,1.74765102,3294.1,3293.5,0.302]
[1732293703524,1.74765102,3294.1,3293.5,0.67725]
[1732293703964,1.74765102,3294.1,3293.5,0.302]
[1732293705030,0.03288218,3294.0,3293.5,0.302]
[1732293705234,1.74765102,3294.1,3293.5,0.302]
[1732293705863,1.74765102,3294.0,3293.5,0.302]
[1732293706363,1.74765102,3294.0,3293.5,0.70745]
[1732293708439,1.74765102,3294.0,3293.7,0.302]
[1732293709072,1.74765102,3294.6,3293.7,0.302]
[1732293709238,0.28019492,3294.5,3293.7,0.302]
[1732293709445,0.28019492,3294.5,3293.9,0.302]
[1732293710004,0.3130771,3294.5,3293.9,0.302]
[1732293710276,0.28019492,3294.4,3293.9,0.302]
[1732293710580,1.74765102,3294.4,3294.1,1.1237]
[1732293710942,1.74765102,3294.4,3294.1,1.15405392]
[1732293711139,1.74765102,3294.4,3294.1,1.1237]
[1732293711364,1.74765102,3294.4,3294.1,4.1237]
[1732293711537,1.74765102,3294.4,3294.3,0.302]
[1732293712976,1.59992691,3294.4,3294.3,0.302]
[1732293714989,1.59992691,3294.4,3294.2,0.302]
[1732293717853,1.59992691,3294.3,3294.2,0.302]
[1732293718380,1.59992691,3294.3,3294.2,0.97071519]
[1732293718890,1.59992691,3294.3,3294.2,6.76685406]
[1732293719055,1.59992691,3294.3,3294.2,3.09813887]
[1732293719687,1.59992691,3294.3,3294.2,3.89373887]
[1732293720502,1.59992691,3295.1,3294.2,6.68987774]
[1732293720809,1.59992691,3295.6,3295.2,0.302]
[1732293720966,1.59992691,3295.5,3295.2,0.302]
[1732293721303,1.59992691,3295.7,3295.5,0.302]
[1732293721463,1.59992691,3295.7,3295.6,0.61181389]
[1732293721892,1.59992691,3296.3,3295.8,0.302]
[1732293722064,1.59992691,3296.2,3296.0,0.302]
[1732293723205,1.59992691,3296.6,3296.0,0.61181389]
[1732293723399,1.59992691,3296.6,3296.3,3.09813887]
[1732293724394,1.59992691,3296.6,3296.1,0.302]
[1732293724910,1.59992691,3296.6,3296.1,0.33233404]
[1732293725502,1.59992691,3296.6,3296.1,0.302]
[1732293725707,1.59992691,3296.6,3295.7,3.7956]
[1732293725922,1.59992691,3296.6,3295.7,4.47516]
[1732293726990,1.59992691,3296.5,3295.7,4.47516]
[1732293727368,0.7786,3296.4,3295.7,0.67956]
[1732293727567,0.7786,3296.4,3295.6,3.38448206]
[1732293727878,0.03288218,3296.3,3295.6,3.38448206]
[1732293728074,0.03288218,3296.3,3295.2,3.38448206]
[1732293728289,2.41722691,3296.2,3295.2,3.38448206]
[1732293728495,3.0,3297.0,3294.8,0.7561]
[1732293728496,0.7955,3296.0,3294.8,4.14058206]
[1732293728668,0.7955,3295.8,3294.8,3.38448206]
[1732293728869,1.63280909,3295.7,3294.8,3.38448206]
[1732293729068,2.39742691,3295.6,3294.4,4.14058206]
[1732293729297,2.03583269,3295.5,3294.4,4.55464027]
[1732293729471,0.7975,3295.4,3294.4,3.38448206]
[1732293729813,0.03288218,3295.3,3294.4,3.38448206]
[1732293730100,1.59992691,3295.2,3294.4,3.38448206]
[1732293730870,0.03288218,3295.1,3294.4,3.38448206]
[1732293731310,0.03288218,3295.1,3294.4,3.72293027]
[1732293731715,1.59992691,3295.2,3294.4,3.72293027]
[1732293732205,0.7975,3295.4,3294.0,0.03035055]
[1732293732206,1.63280909,3295.1,3294.0,3.41483261]
[1732293732371,0.7961,3295.0,3294.0,3.38448206]
[1732293732570,0.03288218,3294.9,3294.0,3.38448206]
[1732293732770,0.03288218,3294.9,3293.6,0.7511]
[1732293733024,1.59992691,3294.8,3293.6,0.7511]
[1732293733338,2.37902691,3294.7,3293.5,3.38448206]
[1732293733537,2.37902691,3294.7,3293.9,3.38448206]
[1732293734399,0.03288218,3294.6,3293.9,3.38448206]
[1732293734606,0.03288218,3294.6,3293.5,3.38448206]
[1732293734802,0.8244,3294.5,3293.5,3.38448206]
[1732293735125,0.8244,3294.3,3293.5,3.38448206]
[1732293735322,0.03288218,3294.2,3293.5,3.38448206]
[1732293735501,1.59992691,3294.1,3293.1,3.38448206]
[1732293735701,0.8047,3293.9,3293.1,3.38448206]
[1732293735907,0.03288218,3293.8,3293.2,0.41673821]
[1732293736101,0.8047,3293.9,3293.2,0.41673821]
[1732293736301,0.03288218,3293.8,3293.2,0.41673821]
[1732293736503,0.03288218,3293.8,3293.1,3.38448206]
[1732293736815,1.59992691,3293.7,3292.7,3.38448206]
[1732293737030,1.63280909,3293.6,3292.7,3.38448206]
[1732293737227,1.63280909,3293.6,3292.8,0.33844821]
[1732293738605,1.59992691,3293.6,3292.8,0.33844821]
[1732293738943,0.03288218,3293.5,3292.8,0.33844821]
[1732293739805,1.59992691,3293.6,3292.8,0.33844821]
[1732293740305,1.59992691,3293.6,3292.9,0.37229303]
[1732293740713,0.03288218,3293.5,3292.9,0.37229303]
[1732293740934,1.59992691,3293.6,3293.1,3.38448206]
[1732293741130,1.59992691,3293.6,3293.5,3.38448206]
[1732293741348,1.59992691,3293.6,3293.1,3.76015957]
[1732293741646,1.59992691,3293.6,3293.1,3.38448206]
[1732293742308,0.03288218,3293.5,3293.1,3.38448206]
[1732293742515,1.59992691,3293.6,3293.1,3.38448206]
[1732293743051,1.59992691,3293.6,3292.6,0.03036523]
[1732293743052,1.59992691,3293.6,3293.5,3.38448206]
[1732293744721,1.59992691,3293.6,3293.1,3.38448206]
[1732293745048,1.59992691,3293.5,3293.1,3.38448206]
[1732293746223,1.59992691,3293.5,3293.1,3.72293027]
[1732293746544,1.59992691,3293.5,3293.2,0.85506323]
[1732293746751,1.59992691,3293.5,3293.2,0.8247]
[1732293747959,1.59992691,3293.4,3293.2,3.85506109]
[1732293748165,1.59992691,3293.4,3293.3,7.1422812]
[1732293749868,1.59992691,3294.1,3293.4,3.0]
[1732293750028,1.59992691,3294.1,3294.0,3.38448206]
[1732293753168,1.59992691,3294.1,3294.0,6.38448206]
[1732293754228,1.59992691,3294.5,3294.0,6.38448206]
[1732293754432,1.59992691,3294.4,3294.0,0.03035206]
[1732293755043,1.59992691,3294.8,3294.0,0.88235206]
[1732293755470,1.59992691,3294.8,3294.2,0.55]
[1732293755666,1.59992691,3294.8,3294.7,2.79517818]
[1732293759977,1.59992691,3294.8,3294.7,6.56897818]
[1732293761277,1.59992691,3294.8,3294.7,5.79517818]
[1732293761440,1.59992691,3294.8,3294.7,6.374696]
[1732293761778,0.03288218,3296.5,3294.7,6.374696]
[1732293761779,0.778,3295.9,3294.8,3.0]
[1732293761965,8.79,3295.8,3294.9,0.03034197]
[1732293762933,8.79,3295.8,3295.7,2.79517818]
[1732293763156,8.79,3296.1,3295.7,3.35421382]
[1732293763790,8.79,3296.1,3295.8,0.03033841]
[1732293764388,8.79,3296.1,3296.0,5.79517818]
[1732293764562,0.84673081,3296.8,3296.1,3.0]
[1732293764755,0.08353081,3296.8,3296.7,2.79517818]
[1732293764964,0.31581078,3297.9,3296.7,5.86987418]
[1732293764965,0.08353081,3297.0,3296.7,5.86987418]
[1732293765260,0.08353081,3297.0,3296.8,2.82550559]
[1732293765494,0.08353081,3297.0,3296.8,0.03032741]
[1732293766170,0.08353081,3297.0,3296.7,2.79517818]
[1732293766666,0.08353081,3297.0,3296.6,3.38324499]
[1732293767893,0.08353081,3297.0,3296.7,0.03033014]
[1732293768102,0.08353081,3297.4,3296.8,0.34135751]
[1732293768301,0.08353081,3297.4,3297.1,3.38324499]
[1732293768603,0.08353081,3297.4,3296.6,0.03032694]
[1732293768604,0.08353081,3297.4,3296.7,3.38324499]
[1732293769000,0.08353081,3297.4,3296.8,0.3383245]
[1732293769162,0.08353081,3297.4,3297.1,3.38324499]
[1732293769364,0.7519,3298.1,3297.2,0.03032657]
[1732293769560,0.08353081,3298.0,3297.5,3.38324499]
[1732293769757,0.08353081,3298.0,3297.9,3.38324499]
[1732293769982,0.08353081,3298.0,3297.5,3.38324499]
[1732293770501,0.08353081,3298.0,3297.6,0.03032012]
[1732293771088,0.08353081,3298.0,3297.9,3.38324499]
[1732293771284,0.08353081,3298.0,3297.9,3.41356265]
[1732293771509,0.08353081,3298.0,3297.9,3.38324499]
[1732293772011,0.08353081,3298.0,3297.9,3.41356135]
[1732293772892,0.08353081,3298.0,3297.9,3.38324499]
[1732293774223,0.08353081,3298.0,3297.9,6.83740756]
[1732293774424,0.08353081,3298.0,3297.9,6.80709113]
[1732293774957,0.08353081,3298.6,3298.0,3.0]
[1732293775232,0.7659,3299.0,3298.5,3.38324499]
[1732293775447,0.08353081,3298.9,3298.5,3.38324499]
[1732293775593,0.08353081,3298.9,3298.6,3.0]
[1732293775794,0.08353081,3298.9,3298.7,0.03031054]
[1732293776430,0.08353081,3299.3,3298.7,0.55]
[1732293776602,0.7659,3299.8,3299.1,3.0]
[1732293776822,0.08353081,3299.7,3299.1,3.0]
[1732293777123,0.08353081,3299.7,3298.8,0.03030642]
[1732293777292,0.11641299,3299.7,3298.7,3.0]
[1732293777494,0.08353081,3299.7,3299.0,3.38324499]
[1732293778232,0.08353081,3299.7,3299.4,3.38324499]
[1732293779095,0.08353081,3299.7,3299.0,3.41355068]
[1732293779298,0.08353081,3299.7,3299.0,3.38324499]
[1732293781012,0.08353081,3299.6,3299.0,3.38324499]
[1732293781195,0.08353081,3299.6,3299.1,0.37201081]
[1732293781857,0.08353081,3299.6,3299.4,3.38324499]
[1732293782145,0.7646,3300.1,3299.5,0.03030389]
[1732293782438,0.7646,3300.6,3299.9,3.38324499]
[1732293782597,0.08353081,3300.5,3299.9,3.38324499]
[1732293782794,0.08353081,3300.5,3299.6,3.34135489]
[1732293783046,0.08353081,3300.5,3299.7,0.67245999]
[1732293783235,0.11641299,3300.5,3299.7,0.67245999]
[1732293783534,0.08353081,3300.5,3299.7,0.67245999]
[1732293783944,0.08353081,3300.5,3299.9,3.38324499]
[1732293784800,0.08353081,3300.5,3299.6,0.34135489]
[1732293784801,0.11641299,3300.5,3299.6,0.34135489]
[1732293785240,0.11641299,3300.5,3299.5,6.38324499]
[1732293785412,0.08353081,3300.5,3299.5,6.38324499]
[1732293787005,0.08353081,3300.4,3299.9,3.38324499]
[1732293787249,0.7646,3300.6,3300.0,0.3383245]
[1732293789241,0.7646,3300.6,3300.0,0.3686238]
[1732293789498,0.7646,3300.6,3300.3,3.38324499]
[1732293790166,0.7912,3301.2,3300.3,3.38324499]
[1732293790457,8.79,3301.1,3300.3,3.38324499]
[1732293790823,8.79,3301.1,3300.4,0.302]
[1732293791069,8.79,3301.1,3300.7,3.38324499]
[1732293791674,8.79,3301.1,3300.8,0.03029261]
[1732293791822,8.79,3301.1,3300.7,3.68524499]
[1732293792023,8.79,3301.2,3300.7,3.68524499]
[1732293792224,8.79,3301.2,3300.7,0.302]
[1732293792871,0.8317,3301.0,3300.7,0.302]
[1732293793386,0.03288218,3300.9,3300.3,3.68524499]
[1732293793530,0.8317,3301.0,3300.3,4.05376949]
[1732293796048,8.79,3300.9,3300.3,4.05376949]
[1732293796350,8.79,3300.9,3300.3,3.68524499]
[1732293796757,8.79,3300.9,3300.4,2.78566021]
[1732293796963,0.03288218,3300.8,3300.0,0.302]
[1732293797157,9.5782,3300.7,3300.0,0.302]
[1732293797370,0.03288218,3300.6,3300.0,0.302]
[1732293797572,0.7882,3300.5,3299.8,2.78566021]
[1732293797776,0.7882,3300.3,3299.2,2.78566021]
[1732293798073,8.79,3300.2,3299.3,0.33230542]
[1732293798371,8.79,3300.2,3299.5,2.78566021]
[1732293798941,8.79,3300.2,3299.8,2.78566021]
[1732293799872,8.79,3300.2,3299.5,3.39945682]
[1732293800075,8.79,3300.2,3299.5,3.08766021]
[1732293800784,8.79,3300.2,3299.4,0.302]
[1732293801336,8.79,3300.2,3299.3,3.0]
[1732293801541,0.03288218,3300.1,3299.0,0.7548]
[1732293801896,0.86188218,3300.1,3299.0,0.302]
[1732293802083,8.79,3300.0,3299.0,0.302]
[1732293802377,0.03288218,3299.9,3299.0,0.99105974]
[1732293802564,0.03288218,3299.9,3299.1,0.302]
[1732293802764,0.7669,3299.7,3298.5,0.302]
[1732293802967,0.7669,3299.5,3298.4,3.58859736]
[1732293803172,0.79978218,3299.4,3298.0,3.58859736]
[1732293803482,0.79978218,3299.4,3298.1,0.43879974]
[1732293803655,0.7669,3299.4,3298.2,0.03031532]
[1732293803979,0.7669,3299.4,3298.2,0.33231532]
[1732293804478,0.7669,3299.4,3298.5,3.0]
[1732293804680,1.75547218,3299.4,3298.3,0.302]
[1732293804851,8.79,3299.3,3298.3,0.302]
[1732293805050,0.03288218,3299.2,3298.3,0.302]
[1732293805788,0.7567,3299.1,3298.1,0.55]
[1732293805948,0.7567,3299.1,3298.2,0.41689103]
[1732293807347,0.03288218,3299.0,3297.6,4.72259736]
[1732293807541,8.79,3298.9,3297.6,4.72259736]
[1732293807884,8.79,3298.9,3298.0,3.58859736]
[1732293808083,8.79,3298.9,3298.1,0.35885974]
[1732293808670,8.79,3298.9,3298.1,3.35885974]
[1732293810917,8.79,3298.9,3298.4,3.58859736]
[1732293811209,0.7567,3299.1,3298.4,3.58859736]
[1732293811210,8.79,3298.8,3298.4,3.58859736]
[1732293811412,8.79,3298.8,3298.5,0.35885974]
[1732293812411,8.79,3298.8,3298.1,0.55]
[1732293813092,8.79,3298.8,3298.2,0.0303136]
[1732293813291,8.79,3298.8,3298.3,0.55]
[1732293813490,8.79,3298.8,3298.4,3.58859736]
[1732293813702,8.79,3299.0,3298.6,0.55]
[1732293814026,8.79,3299.0,3298.9,3.58859736]
[1732293814312,8.79,3299.0,3298.9,4.91569736]
[1732293814611,8.79,3299.0,3298.9,5.4072671]
[1732293815287,8.79,3299.0,3298.6,0.55]
[1732293815696,8.79,3299.0,3298.7,0.302]
[1732293816500,8.79,3299.0,3298.9,3.58859736]
[1732293817044,8.79,3299.4,3298.9,3.58859736]
[1732293817332,8.79,3299.4,3299.0,0.43654974]
[1732293817490,8.79,3299.4,3299.1,0.03030797]
[1732293817692,8.79,3299.4,3299.0,0.43654974]
[1732293818289,8.79,3299.4,3298.6,3.852]
[1732293818602,0.799,3299.3,3298.6,3.88230724]
[1732293818803,0.799,3299.3,3298.6,3.852]
[1732293819187,0.799,3299.3,3298.6,3.88230832]
[1732293819392,0.799,3299.3,3298.7,0.82753057]
[1732293820001,0.799,3299.3,3298.3,0.302]
[1732293820002,0.83188218,3299.3,3298.3,0.852]
[1732293820297,8.79,3299.2,3298.3,0.302]
[1732293820496,8.79,3299.2,3298.4,0.03031318]
[1732293821522,8.79,3299.2,3298.3,0.99105974]
[1732293821944,8.79,3299.2,3297.4,0.7988]
[1732293821945,0.84498218,3299.1,3297.4,0.7988]
[1732293822093,0.8121,3298.9,3297.0,0.7988]
[1732293822293,0.8121,3298.7,3297.1,0.43873974]
[1732293822597,9.75349822,3299.0,3297.1,0.43873974]
[1732293822598,0.7973,3298.5,3297.1,0.43873974]
[1732293822930,10.54931822,3298.4,3297.3,2.79073327]
[1732293823133,8.79,3298.3,3297.3,2.79073327]
[1732293823287,8.79,3298.3,3297.3,2.8210563]
[1732293823492,8.79,3298.3,3297.4,3.0]
[1732293823803,8.79,3298.3,3297.5,0.58210563]
[1732293824126,8.79,3298.3,3297.6,2.79073327]
[1732293824839,8.79,3298.3,3297.6,0.03032046]
[1732293825596,8.79,3298.3,3297.6,0.81742046]
[1732293825796,8.79,3298.3,3297.7,3.0]
[1732293825996,8.79,3298.3,3297.8,1.26990585]
[1732293827659,8.79,3298.3,3297.8,0.71990585]
[1732293827988,8.79,3298.3,3297.6,3.381638]
[1732293828382,0.7613,3298.2,3297.3,3.0]
[1732293828689,0.7613,3298.2,3297.4,0.0303206]
[1732293828977,8.79,3298.1,3297.4,0.3323206]
[1732293829280,8.79,3298.1,3297.6,3.381638]
[1732293829654,8.79,3298.1,3298.0,3.381638]
[1732293829986,8.79,3298.5,3298.0,3.7198018]
[1732293830142,8.79,3298.5,3297.6,3.381638]
[1732293831565,8.79,3298.5,3297.7,3.0]
[1732293831992,8.79,3298.5,3297.8,0.33231798]
[1732293833278,8.79,3298.5,3297.8,0.302]
[1732293833601,8.79,3298.5,3297.6,0.302]
[1732293833812,0.85178218,3298.4,3297.3,0.302]
[1732293833984,8.79,3298.3,3297.4,0.3683638]
[1732293835511,8.79,3298.3,3297.3,0.302]
[1732293836166,8.79,3298.3,3297.4,0.302]
[1732293837469,0.78378218,3298.2,3297.1,0.302]
[1732293837700,1.23756398,3298.1,3297.1,0.302]
[1732293837865,0.31306794,3298.0,3297.1,0.302]
[1732293838066,0.03288218,3298.0,3297.1,0.302]
[1732293838293,0.03288218,3298.1,3297.1,0.302]
[1732293839223,0.7509,3298.2,3297.1,0.302]
[1732293839547,0.28010649,3298.1,3297.3,0.302]
[1732293839701,0.03288218,3298.0,3297.3,0.302]
[1732293840090,0.03288218,3298.1,3297.3,0.302]
[1732293840399,0.7674,3298.0,3297.3,0.302]
[1732293840604,0.7674,3298.0,3297.3,0.66903638]
[1732293840991,8.82288218,3297.9,3297.1,0.302]
[1732293841190,8.79,3297.0,3296.0,3.381638]
[1732293841413,0.7854,3296.9,3296.1,0.3381638]
[1732293842321,0.7854,3296.9,3296.2,0.302]
[1732293842690,0.81,3297.2,3296.5,1.0696]
[1732293842935,0.81,3297.2,3296.5,1.0999292]
[1732293843295,0.81,3297.2,3296.5,4.0696]
[1732293843724,0.81,3297.2,3296.5,3.302]
[1732293843922,0.03288218,3297.1,3296.3,0.302]
[1732293844138,0.7624,3297.0,3296.3,0.302]
[1732293844417,0.7624,3296.8,3295.7,0.302]
[1732293844617,8.82288218,3296.7,3295.7,0.302]
[1732293844825,0.798,3296.6,3295.7,0.302]
[1732293844996,0.83088218,3296.6,3295.7,0.302]
[1732293845196,0.83088218,3296.6,3295.8,0.302]
[1732293845432,0.798,3296.4,3295.8,0.302]
[1732293845739,0.798,3296.4,3295.2,4.155138]
[1732293845967,8.79,3296.3,3295.3,0.03034057]
[1732293846124,8.79,3296.3,3295.6,3.381638]
[1732293846444,0.03288218,3296.2,3295.7,0.3381638]
[1732293846648,0.78348218,3296.2,3295.2,3.381638]
[1732293846848,0.7506,3296.0,3294.8,3.381638]
[1732293847042,0.7506,3296.0,3294.5,0.8183]